bitfinex-derivatives/quotes_ETHF0:USTF0_20260123
["timestamp","ask_amount","ask_price","bid_price","bid_amount"]
[1769182746514,0.14443013,2942.2,2939.9,0.14533869]
[1769182746715,0.14443013,2942.2,2940.3,0.31559869]
[1769182747212,0.14758058,2942.2,2939.8,0.14533869]
[1769182747715,0.14758058,2942.2,2939.8,0.31561869]
[1769182747914,0.14758058,2942.2,2939.9,0.14533869]
[1769182748504,0.14443013,2941.9,2939.8,0.17028]
[1769182748707,0.00315045,2942.2,2940.0,0.14533869]
[1769182748904,0.00315045,2942.2,2940.5,0.31557869]
[1769182749216,0.00315045,2942.2,2940.7,0.14533869]
[1769182749512,0.00315045,2942.2,2940.7,0.14916642]
[1769182749720,0.00315045,2942.2,2940.7,0.00382773]
[1769182750516,0.00315045,2942.2,2940.7,0.14916642]
[1769182750709,0.00315045,2942.2,2940.7,0.00382773]
[1769182751608,0.00315045,2942.2,2940.8,9.8]
[1769182752812,0.14758058,2942.2,2940.8,9.8]
[1769182753016,0.14758058,2942.2,2940.7,0.00382773]
[1769182753614,0.14758058,2942.2,2940.7,9.80382773]
[1769182753815,0.14758058,2942.2,2940.7,0.00382773]
[1769182754113,0.14443013,2942.0,2940.7,0.00382773]
[1769182754306,0.17017,2941.9,2940.7,0.00382773]
[1769182755017,0.00315045,2942.2,2940.7,0.00382773]
[1769182755410,0.14758058,2942.2,2940.7,0.00382773]
[1769182755614,0.14443013,2942.1,2940.7,0.00382773]
[1769182755820,0.14443013,2942.1,2939.6,0.17029]
[1769182756112,0.14443013,2942.1,2939.6,9.8]
[1769182756312,0.14443013,2942.0,2940.0,0.31560869]
[1769182756515,0.14443013,2941.9,2940.0,0.17027]
[1769182756720,0.14443013,2941.8,2940.0,0.00410814]
[1769182756919,0.14443013,2941.4,2940.0,0.00410814]
[1769182757116,0.00315045,2942.2,2940.0,0.00410814]
[1769182757117,0.31464013,2941.2,2940.0,0.00410814]
[1769182757320,0.14443013,2941.1,2940.0,0.00410814]
[1769182758323,0.00315045,2942.2,2940.0,0.00410814]
[1769182758324,0.14443013,2941.6,2940.0,0.00410814]
[1769182759819,0.14443013,2941.5,2940.0,0.00410814]
[1769182760220,0.14443013,2942.0,2940.1,0.31560869]
[1769182760420,0.14443013,2942.0,2940.2,0.31559869]
[1769182761025,0.17330045,2942.2,2940.3,0.31558869]
[1769182761226,0.17330045,2942.2,2940.4,0.14533869]
[1769182761526,0.14443013,2942.0,2940.3,0.17025]
[1769182762623,0.14443013,2942.0,2940.0,0.00410814]
[1769182762824,0.14443013,2942.0,2940.0,0.17438814]
[1769182763124,0.14443013,2942.0,2940.0,0.31972683]
[1769182763825,0.14443013,2942.0,2940.2,0.14533869]
[1769182764224,0.14443013,2942.0,2940.1,0.17027]
[1769182764725,0.00315045,2942.2,2940.4,0.14533869]
[1769182765023,0.00315045,2942.2,2940.9,0.14533869]
[1769182765220,0.00315045,2942.2,2941.0,9.97022]
[1769182765419,0.14443013,2943.1,2941.1,0.14533869]
[1769182765617,0.14443013,2943.6,2941.4,0.14533869]
[1769182765822,0.14443013,2943.6,2941.5,0.14533869]
[1769182766019,0.14443013,2944.9,2942.4,0.14533869]
[1769182766215,0.31442013,2945.0,2942.5,0.14533869]
[1769182766419,0.14443013,2945.0,2942.9,0.14533869]
[1769182766823,0.00509623,2944.0,2942.9,0.14533869]
[1769182767021,0.00896262,2944.0,2942.9,0.149721]
[1769182767217,0.15339275,2944.0,2942.9,0.00438231]
[1769182767620,0.00896262,2944.0,2942.9,0.00438231]
[1769182770526,0.15339275,2944.0,2941.6,0.14533869]
[1769182770728,0.14443013,2943.2,2941.1,0.14533869]
[1769182771124,0.14443013,2943.8,2941.4,0.14533869]
[1769182771322,0.17006,2943.8,2941.4,0.14533869]
[1769182771527,0.14443013,2943.7,2941.4,0.14853372]
[1769182771731,0.31450013,2943.6,2941.4,0.14853372]
[1769182771930,0.30804772,2943.3,2941.4,0.14853372]
[1769182772125,0.00386639,2944.0,2942.0,0.14959241]
[1769182772329,0.00386639,2944.0,2942.3,0.00509623]
[1769182773626,0.14182411,2944.0,2942.3,0.00509623]
[1769182774026,0.13795772,2943.4,2942.3,0.00509623]
[1769182774931,0.17007,2943.5,2942.3,0.00509623]
[1769182775129,0.13795772,2941.9,2940.0,0.14959241]
[1769182775426,1.75986475,2943.4,2940.1,0.31986241]
[1769182775427,0.13795772,2942.2,2940.1,0.31986241]
[1769182775629,0.13795772,2942.1,2940.1,0.14959241]
[1769182776333,0.13795772,2942.1,2940.1,0.00373796]
[1769182776334,0.13795772,2941.8,2940.1,0.00373796]
[1769182776532,0.00509623,2941.4,2940.1,0.00373796]
[1769182777426,0.30816772,2941.2,2940.1,0.00373796]
[1769182777725,0.17021,2941.1,2939.0,0.14959241]
[1769182777927,0.13795772,2941.2,2939.1,0.14959241]
[1769182778122,0.13795772,2941.2,2939.2,0.14959241]
[1769182778533,0.13795772,2941.2,2939.2,0.1526899]
[1769182779537,0.13795772,2941.1,2939.2,0.1526899]
[1769182779832,0.13795772,2941.1,2939.2,0.00309749]
[1769182780629,0.00509623,2941.4,2939.2,0.1526899]
[1769182781135,0.30819772,2940.6,2939.2,0.00309749]
[1769182781342,0.17021,2941.2,2939.2,0.00309749]
[1769182781529,0.00509623,2941.4,2939.2,0.1526899]
[1769182782034,0.00509623,2941.4,2939.4,0.31990241]
[1769182782627,0.00509623,2941.4,2939.5,0.14959241]
[1769182783133,0.1702,2941.3,2939.5,0.14959241]
[1769182785638,0.30816772,2941.2,2939.2,0.00309749]
[1769182786031,0.17021,2941.2,2939.2,0.1526899]
[1769182786232,0.00509623,2941.4,2939.4,0.14959241]
[1769182788132,0.17529623,2941.4,2939.4,0.14959241]
[1769182788332,0.17021,2941.2,2939.4,0.14959241]
[1769182789039,0.00509623,2941.4,2940.1,0.14959241]
[1769182789237,0.003167,2942.1,2940.2,0.31985241]
[1769182789438,0.003167,2942.1,2940.5,0.31984241]
[1769182789627,0.003167,2942.1,2940.0,1.33904107]
[1769182789628,0.13795772,2941.2,2940.0,0.00509623]
[1769182789828,0.13795772,2941.0,2940.0,0.00509623]
[1769182790133,0.30818772,2940.9,2939.1,0.14959241]
[1769182790433,0.30818772,2940.9,2939.1,9.94959241]
[1769182790940,0.30818772,2940.9,2938.5,0.14959241]
[1769182790941,0.17026,2940.4,2938.5,0.14959241]
[1769182791333,0.13795772,2940.4,2938.6,9.8]
[1769182793044,0.13795772,2940.4,2938.5,0.17036]
[1769182793541,0.13795772,2940.4,2938.6,9.8]
[1769182795345,0.13795772,2940.9,2939.0,0.17033]
[1769182795532,0.13795772,2940.9,2938.8,0.14959241]
[1769182795932,0.13795772,2940.9,2939.1,0.17033]
[1769182796336,0.003167,2942.1,2937.8,0.1704]
[1769182796337,0.13795772,2939.7,2937.8,0.1704]
[1769182796538,0.13795772,2939.4,2937.2,0.17044]
[1769182796945,0.17031,2939.5,2937.5,0.14959241]
[1769182797143,0.13795772,2939.9,2937.7,0.1704]
[1769182797340,0.13795772,2939.8,2937.7,0.1704]
[1769182797548,0.00510499,2938.8,2937.7,0.17460077]
[1769182799346,0.00510499,2938.8,2937.7,0.00420077]
[1769182800235,0.14306271,2938.8,2937.7,0.00420077]
[1769182800642,0.31341271,2938.8,2937.7,0.00420077]
[1769182800842,0.30831772,2938.6,2937.7,0.00420077]
[1769182801038,0.00510499,2938.8,2936.8,10.12005241]
[1769182801243,0.13795772,2939.7,2937.7,1.33394484]
[1769182801437,0.13795772,2939.7,2937.5,0.17042]
[1769182801655,0.30827772,2939.3,2937.5,0.00510499]
[1769182801953,0.17035,2938.7,2937.5,0.00919713]
[1769182802149,0.14286769,2938.5,2937.5,0.00919713]
[1769182802447,0.31319769,2939.0,2937.5,0.00919713]
[1769182802943,0.14286769,2939.0,2937.5,0.00919713]
[1769182803339,0.31320769,2939.0,2937.5,0.00919713]
[1769182803541,0.14286769,2938.8,2937.5,0.00919713]
[1769182804252,0.14286769,2939.3,2937.5,0.00919713]
[1769182805744,0.31318769,2939.3,2937.5,0.00919713]
[1769182805939,0.14286769,2939.2,2937.5,0.00919713]
[1769182807352,0.14916124,2939.0,2937.5,0.00919713]
[1769182808743,0.1703,2939.6,2937.5,0.00919713]
[1769182808744,0.14916124,2939.5,2937.5,0.00919713]
[1769182809156,0.14916124,2937.9,2935.8,6.66906114]
[1769182809351,0.14916124,2937.9,2935.8,0.17052]
[1769182809546,0.14916124,2937.9,2935.9,9.8]
[1769182810151,0.14916124,2937.6,2935.9,9.80372028]
[1769182810452,0.1531665,2937.6,2935.9,9.80372028]
[1769182813748,0.1531665,2937.6,2935.9,0.00372028]
[1769182815856,0.14916124,2937.3,2935.9,0.00372028]
[1769182816053,0.14916124,2937.2,2935.9,0.00372028]
[1769182817455,0.00400526,2937.6,2935.9,0.00372028]
[1769182818259,0.00400526,2937.6,2936.2,0.17049]
[1769182818559,0.00400526,2937.6,2936.3,0.17049]
[1769182819163,0.1531665,2937.6,2935.9,0.00372028]
[1769182820263,0.1531665,2937.6,2936.0,0.17051]
[1769182821966,0.1531665,2937.6,2936.1,0.1705]
[1769182823166,0.1531665,2937.6,2935.9,0.00372028]
[1769182823765,0.14916124,2937.5,2935.9,0.00372028]
[1769182823966,0.14916124,2937.3,2935.9,0.00372028]
[1769182824166,0.31959124,2937.3,2935.9,0.00372028]
[1769182824366,0.14916124,2937.2,2935.9,0.00372028]
[1769182825466,0.1531665,2937.6,2935.9,0.00372028]
[1769182826365,0.3235865,2937.6,2935.9,0.00372028]
[1769182826667,0.14916124,2937.5,2935.9,0.00372028]
[1769182828972,0.14916124,2937.3,2935.9,0.00372028]
[1769182829164,0.14916124,2937.1,2935.9,0.00372028]
[1769182830071,0.17044,2937.2,2933.4,9.79696292]
[1769182830072,0.14916124,2936.8,2934.7,0.17058]
[1769182830277,0.14916124,2936.6,2934.8,0.17058]
[1769182830483,0.14916124,2936.4,2934.5,2.56334458]
[1769182830781,0.14916124,2936.4,2934.8,9.97057]
[1769182830976,0.14916124,2936.9,2935.3,0.17055]
[1769182831177,0.14916124,2936.9,2935.3,0.17373241]
[1769182832172,0.14586589,2937.4,2935.4,2.39275458]
[1769182832375,0.14586589,2937.4,2935.9,0.17051]
[1769182833083,0.00400526,2937.6,2935.9,0.17051]
[1769182833282,0.00400526,2937.6,2936.3,0.17048]
[1769182833475,0.00400526,2937.6,2936.4,0.17048]
[1769182833670,0.00400526,2937.6,2936.2,2.39275458]
[1769182833876,0.14586589,2938.8,2937.0,0.17045]
[1769182834577,0.14586589,2938.8,2936.8,2.39275458]
[1769182834780,0.15003531,2938.8,2936.5,2.39275458]
[1769182834974,0.15003531,2938.8,2936.6,2.39275458]
[1769182835175,0.15003531,2938.8,2936.8,0.17046]
[1769182835475,0.15003531,2938.8,2936.8,2.56321458]
[1769182835975,0.15003531,2938.8,2936.8,0.17046]
[1769182836178,0.15003531,2938.8,2936.9,9.97046]
[1769182836371,0.15003531,2938.8,2937.0,0.17045]
[1769182836781,0.15003531,2938.8,2936.9,9.8]
[1769182838479,0.15003531,2938.8,2936.6,0.17047]
[1769182838480,0.14586589,2938.6,2936.6,0.17047]
[1769182838681,0.14586589,2938.5,2936.6,0.17047]
[1769182838879,0.14586589,2938.5,2936.7,9.8]
[1769182839886,0.31623589,2938.5,2936.7,9.8]
[1769182840089,0.14586589,2938.4,2936.7,9.8]
[1769182840288,0.14586589,2937.9,2936.3,2.39275458]
[1769182840484,0.14586589,2937.8,2936.0,0.1705]
[1769182840788,0.14586589,2937.3,2935.5,12.19275458]
[1769182840987,0.14586589,2937.3,2935.4,0.17054]
[1769182841390,0.14586589,2937.3,2935.4,9.97054]
[1769182841689,0.14586589,2937.3,2935.5,0.17053]
[1769182843378,0.14586589,2937.3,2935.4,2.39275458]
[1769182843589,0.14586589,2937.1,2935.3,0.00318241]
[1769182844584,0.14586589,2936.9,2935.3,0.00318241]
[1769182844784,0.31632589,2936.9,2935.3,0.00318241]
[1769182844987,0.14586589,2936.6,2935.3,0.00318241]
[1769182845288,0.14924826,2936.6,2935.3,0.00318241]
[1769182846585,0.00338237,2936.6,2935.3,0.00318241]
[1769182847287,0.00338237,2936.6,2935.5,0.17053]
[1769182847586,0.14586589,2937.6,2935.4,2.53626901]
[1769182847889,0.14586589,2937.6,2936.0,0.1705]
[1769182848791,0.14985102,2937.6,2936.0,0.1705]
[1769182852085,0.14985102,2937.6,2936.1,9.8]
[1769182854692,0.14985102,2937.6,2936.1,9.9705]
[1769182856097,0.14985102,2937.6,2936.1,0.1705]
[1769182856293,0.14985102,2937.6,2935.8,2.39275458]
[1769182856497,0.14985102,2937.6,2935.8,12.19275458]
[1769182856992,0.14985102,2937.6,2935.8,12.36327458]
[1769182857194,0.14985102,2937.6,2936.0,0.17051]
[1769182859300,0.14586589,2937.4,2935.6,2.39275458]
[1769182859887,0.14586589,2937.4,2935.6,12.36328458]
[1769182860092,0.14985102,2937.6,2935.9,0.17051]
[1769182861799,0.14985102,2937.6,2935.9,2.39275458]
[1769182861994,0.00398513,2937.6,2936.3,0.17049]
[1769182862190,0.14586589,2938.1,2936.7,0.17047]
[1769182862594,0.14586589,2938.1,2936.8,0.17046]
[1769182862898,0.14197321,2938.8,2937.1,0.17044]
[1769182863195,0.14539925,2938.8,2937.2,0.17044]
[1769182863791,0.14539925,2938.8,2936.0,9.51228544]
[1769182863792,0.14197321,2938.1,2936.2,2.56324458]
[1769182863994,0.14197321,2937.9,2936.0,2.39275458]
[1769182864298,0.14197321,2937.9,2936.0,2.56325458]
[1769182864502,0.14197321,2938.6,2936.4,0.17048]
[1769182864700,0.14197321,2938.6,2936.5,0.17048]
[1769182865293,0.14197321,2938.6,2936.5,2.56323458]
[1769182865694,0.14197321,2938.6,2936.7,0.17046]
[1769182865896,0.14197321,2938.6,2937.0,2.39275458]
[1769182866294,0.14197321,2938.6,2937.0,12.36320458]
[1769182866500,0.14197321,2938.6,2937.0,9.97045]
[1769182866796,0.14197321,2938.6,2937.0,12.36320458]
[1769182866998,0.14197321,2938.6,2937.1,2.39275458]
[1769182867196,0.14197321,2938.6,2937.1,0.17044]
[1769182867401,0.14197321,2938.6,2937.1,2.56319458]
[1769182867602,0.14197321,2938.6,2937.1,0.17044]
[1769182869007,0.31233321,2938.6,2936.6,2.39275458]
[1769182869205,0.13716573,2938.5,2936.5,2.56323458]
[1769182869407,0.13716573,2938.5,2936.5,9.97048]
[1769182869797,0.13716573,2938.5,2936.5,12.36323458]
[1769182870001,0.13716573,2938.5,2936.6,0.17047]
[1769182870204,0.13716573,2938.5,2936.7,0.17047]
[1769182870404,0.13716573,2938.5,2937.0,0.17045]
[1769182871708,0.13716573,2938.5,2936.7,12.19275458]
[1769182871709,0.13716573,2938.5,2936.8,2.39275458]
[1769182871908,0.00342604,2938.8,2937.2,0.17043]
[1769182872109,0.00342604,2938.8,2937.3,0.17043]
[1769182874811,0.14059177,2938.8,2937.3,0.17043]
[1769182875210,0.14059177,2938.8,2936.8,2.39275458]
[1769182875909,0.13716573,2938.3,2936.7,12.19275458]
[1769182876108,0.13716573,2938.2,2936.4,2.39275458]
[1769182876314,0.13716573,2938.0,2936.4,2.39275458]
[1769182876509,0.13716573,2937.9,2936.2,2.56325458]
[1769182876710,0.13716573,2937.9,2936.2,0.1705]
[1769182876906,0.13716573,2937.6,2935.8,2.39275458]
[1769182877107,0.13716573,2937.6,2935.7,2.39275458]
[1769182877316,0.13716573,2937.6,2935.7,2.56327458]
[1769182878114,0.13716573,2937.5,2935.7,0.17052]
[1769182878311,6.498,2938.7,2935.3,2.39593699]
[1769182878312,0.13716573,2937.2,2935.3,2.39593699]
[1769182878615,0.13716573,2937.2,2935.3,0.00318241]
[1769182880008,0.13716573,2937.1,2935.3,0.00318241]
[1769182880215,0.13716573,2936.9,2935.3,0.00318241]
[1769182881115,0.13716573,2936.9,2935.4,0.17054]
[1769182881318,0.13716573,2937.4,2935.7,0.17052]
[1769182881821,0.13716573,2937.4,2935.8,0.17052]
[1769182882014,0.17037,2938.4,2935.9,0.17051]
[1769182882015,0.13716573,2938.3,2935.9,0.17051]
[1769182882215,0.13716573,2938.1,2935.9,0.17051]
[1769182882416,0.13716573,2938.0,2935.9,2.56326458]
[1769182883617,0.13716573,2937.7,2935.9,0.17051]
[1769182884122,0.13716573,2937.6,2935.7,2.39275458]
[1769182884314,0.13716573,2937.6,2935.5,2.39275458]
[1769182884716,0.13716573,2937.6,2935.5,2.56329458]
[1769182885412,0.30757573,2937.6,2935.5,2.56329458]
[1769182885615,0.13716573,2937.5,2935.5,2.56329458]
[1769182886320,0.13716573,2937.4,2935.5,2.56329458]
[1769182886619,0.13716573,2937.2,2935.5,0.17054]
[1769182886814,0.13716573,2937.2,2935.3,0.00318241]
[1769182887017,0.30760573,2937.2,2935.3,0.00318241]
[1769182887322,0.13716573,2937.1,2935.3,0.00318241]
[1769182888021,0.13716573,2937.1,2935.3,0.17373241]
[1769182889025,0.13716573,2936.9,2935.3,0.17373241]
[1769182889413,0.13716573,2936.9,2935.6,0.17053]
[1769182889615,0.13716573,2936.9,2935.3,0.00318241]
[1769182889819,0.13716573,2936.9,2935.8,0.17052]
[1769182890216,0.13716573,2937.5,2935.9,0.17051]
[1769182890618,0.13716573,2937.5,2936.2,0.17049]
[1769182891418,0.13716573,2938.0,2936.5,0.17048]
[1769182899122,0.13716573,2938.0,2936.0,2.56326458]
[1769182899329,0.14103923,2937.8,2936.0,0.17051]
[1769182900023,0.14103923,2937.7,2936.0,0.17051]
[1769182900823,0.14103923,2937.4,2935.6,2.39275458]
[1769182901026,0.14103923,2937.4,2935.7,0.17052]
[1769182901928,0.14103923,2937.9,2936.1,0.1705]
[1769182902130,0.14103923,2937.9,2936.4,0.17048]
[1769182902721,0.14103923,2937.9,2935.9,2.56326458]
[1769182903225,0.14103923,2937.9,2936.0,0.1705]
[1769182903619,0.14103923,2937.9,2936.2,0.17049]
[1769182904823,0.14103923,2937.9,2936.2,2.56324458]
[1769182905428,0.14103923,2937.8,2936.2,0.17049]
[1769182905628,0.14103923,2937.7,2936.0,2.39275458]
[1769182905828,0.14103923,2937.7,2935.8,5.35658342]
[1769182906029,0.14103923,2937.7,2935.8,2.39275458]
[1769182906424,0.14103923,2937.6,2935.8,2.39275458]
[1769182906625,0.14103923,2937.0,2935.6,2.39275458]
[1769182906824,0.14103923,2937.0,2935.5,2.39275458]
[1769182907021,0.14103923,2937.0,2935.4,2.39275458]
[1769182907628,0.14103923,2937.0,2935.3,0.00318241]
[1769182908029,0.14103923,2937.0,2935.3,2.39593699]
[1769182908530,0.14103923,2937.0,2935.3,0.00318241]
[1769182909028,0.14103923,2937.0,2935.3,2.39593699]
[1769182909331,0.14103923,2937.0,2935.4,2.39275458]
[1769182909531,0.14103923,2937.0,2935.3,2.39593699]
[1769182909732,0.14103923,2937.0,2935.4,2.39275458]
[1769182909924,0.14103923,2937.0,2935.5,2.56329458]
[1769182910330,6.63903923,2937.5,2935.5,2.56329458]
[1769182910530,0.14103923,2937.5,2935.9,2.39275458]
[1769182910928,0.14103923,2937.5,2935.9,2.56326458]
[1769182911132,0.14103923,2938.0,2936.0,2.56326458]
[1769182911330,0.97432566,2937.9,2936.0,2.56326458]
[1769182911530,0.14103923,2937.9,2936.0,2.56326458]
[1769182912334,0.14103923,2937.9,2936.1,2.39275458]
[1769182913735,0.14103923,2937.9,2936.0,2.56326458]
[1769182914136,0.14103923,2937.8,2936.0,2.56326458]
[1769182914336,0.14103923,2937.8,2936.0,0.17051]
[1769182914931,0.14103923,2937.8,2936.1,2.39275458]
[1769182915136,0.14103923,2937.8,2936.1,2.56325458]
[1769182917137,0.14103923,2937.8,2936.2,0.17049]
[1769182918538,0.14103923,2937.8,2936.2,2.56324458]
[1769182919739,0.14103923,2937.8,2936.2,12.36324458]
[1769182920238,0.14103923,2937.8,2936.2,2.56324458]
[1769182922133,0.1704,2937.9,2935.6,4.27630656]
[1769182922134,0.1469826,2937.3,2935.8,2.39275458]
[1769182922435,6.6449826,2937.6,2935.9,2.39275458]
[1769182923247,2.96951203,2938.7,2936.3,0.17049]
[1769182923248,0.1469826,2938.1,2936.3,0.17049]
[1769182923438,0.1469826,2938.1,2936.4,2.39275458]
[1769182923742,0.1469826,2938.1,2936.5,2.39275458]
[1769182923941,0.1469826,2938.1,2936.7,2.39275458]
[1769182924246,0.1469826,2938.6,2936.8,2.39275458]
[1769182925248,0.1469826,2938.6,2936.7,2.39275458]
[1769182925441,0.1469826,2938.4,2936.8,0.17046]
[1769182927152,0.1469826,2938.4,2936.6,2.39275458]
[1769182927446,0.1500612,2938.3,2936.6,2.39275458]
[1769182928147,0.1500612,2938.2,2936.6,2.39275458]
[1769182928342,0.17039,2938.0,2936.3,2.56324458]
[1769182928535,0.1500612,2937.5,2936.0,2.39275458]
[1769182928737,0.1500612,2937.5,2935.9,2.39275458]
[1769182928944,0.1500612,2937.5,2935.8,2.39275458]
[1769182929142,0.1500612,2937.5,2935.9,2.39275458]
[1769182930051,0.1500612,2938.1,2936.1,0.1705]
[1769182930246,0.1500612,2938.1,2936.3,2.39275458]
[1769182930647,0.1500612,2938.1,2936.2,2.56324458]
[1769182932042,0.1500612,2938.1,2936.3,2.39275458]
[1769182932561,0.1500612,2938.1,2936.4,0.17048]
[1769182932851,0.00342604,2938.8,2936.4,0.17048]
[1769182932852,0.1500612,2938.6,2936.7,2.56321458]
[1769182933152,0.1500612,2938.6,2936.9,2.39275458]
[1769182933353,0.00342604,2938.8,2937.3,2.39275458]
[1769182933649,0.00342604,2938.8,2937.5,2.56317458]
[1769182933853,0.00342604,2938.8,2937.5,2.56604315]
[1769182934151,0.15348724,2938.8,2937.5,0.17328857]
[1769182934746,0.15348724,2938.8,2937.5,0.00286857]
[1769182936352,0.00342604,2938.8,2937.5,0.00286857]
[1769182938356,0.00342604,2938.8,2937.6,0.17041]
[1769182939858,0.00342604,2938.8,2937.5,0.00286857]
[1769182941752,0.15348724,2938.8,2937.5,0.00286857]
[1769182944154,0.32383724,2938.8,2937.5,0.00286857]
[1769182944355,0.1500612,2938.7,2937.5,0.00286857]
[1769182945256,0.1500612,2938.6,2937.5,0.00286857]
[1769182947959,0.1500612,2938.4,2936.7,2.39275458]
[1769182948164,0.1500612,2938.2,2936.4,2.56323458]
[1769182948358,0.1500612,2938.2,2936.5,9.8]
[1769182948862,0.1500612,2938.2,2936.5,0.00345023]
[1769182950357,0.1500612,2938.2,2936.5,2.39620481]
[1769182950562,0.1500612,2938.2,2936.6,0.17047]
[1769182951757,0.17036,2938.6,2936.8,0.31059412]
[1769182951958,0.14450277,2938.5,2936.8,2.7033487]
[1769182952159,0.14450277,2938.5,2936.8,0.17046]
[1769182952360,0.14450277,2938.5,2936.8,2.56321458]
[1769182953058,0.14450277,2938.4,2936.7,2.39275458]
[1769182957371,0.14450277,2938.4,2936.8,2.39275458]
[1769182957677,0.14450277,2938.4,2936.7,2.39275458]
[1769182959280,0.14450277,2938.4,2936.8,2.39275458]
[1769182959480,0.14450277,2938.3,2936.8,2.39275458]
[1769182959776,0.14450277,2938.3,2936.7,2.39275458]
[1769182961080,0.14450277,2938.3,2936.8,2.39275458]
[1769182961879,0.00342604,2938.8,2937.1,0.14683485]
[1769182962077,0.00342604,2938.8,2937.4,2.39275458]
[1769182963277,0.14792881,2938.8,2937.4,2.39275458]
[1769182963678,0.14792881,2938.8,2937.3,2.39275458]
[1769182963882,0.14792881,2938.8,2937.4,2.39275458]
[1769182964082,0.14792881,2938.8,2937.3,2.39275458]
[1769182965685,0.14450277,2938.5,2937.1,2.39275458]
[1769182965880,0.17041,2937.7,2936.5,0.00345023]
[1769182966081,0.14450277,2937.6,2936.5,0.00345023]
[1769182966681,0.14450277,2937.5,2936.5,0.00345023]
[1769182970580,0.14450277,2938.0,2936.5,0.00345023]
[1769182971685,0.14450277,2938.6,2936.5,2.54275055]
[1769182971887,0.14450277,2938.6,2936.6,0.17047]
[1769182972292,0.14450277,2938.4,2936.6,0.17047]
[1769182973292,0.14450277,2938.3,2936.6,0.17047]
[1769182975795,0.14450277,2938.2,2936.5,2.39620481]
[1769182975995,0.14450277,2938.0,2936.5,2.39620481]
[1769182976194,0.14450277,2938.0,2936.5,0.00345023]
[1769182976396,0.14450277,2937.7,2936.5,0.00345023]
[1769182976993,0.31491277,2937.7,2936.5,0.00345023]
[1769182977193,0.14450277,2937.6,2936.5,0.00345023]
[1769182977895,0.31492277,2937.6,2936.5,0.00345023]
[1769182978097,0.14450277,2937.1,2935.7,2.39275458]
[1769182978297,0.14450277,2937.1,2935.6,2.39275458]
[1769182978991,0.14450277,2937.1,2935.6,2.39716088]
[1769182980398,0.14450277,2937.1,2935.6,0.0044063]
[1769182981498,0.31494277,2937.1,2935.6,0.0044063]
[1769182981695,0.14450277,2937.0,2935.6,0.0044063]
[1769182983298,0.15119898,2936.9,2935.6,0.0044063]
[1769182984300,0.15119898,2937.4,2935.6,0.0044063]
[1769182984604,0.96005891,2937.3,2935.6,0.0044063]
[1769182984905,0.15119898,2937.3,2935.6,0.0044063]
[1769182985606,0.32162898,2937.3,2935.6,0.0044063]
[1769182985902,0.15119898,2937.1,2935.6,0.0044063]
[1769182987701,0.32163898,2937.1,2935.6,0.0044063]
[1769182987902,0.13219973,2937.0,2935.6,0.0044063]
[1769182991912,0.30264973,2937.0,2935.6,0.0044063]
[1769182992411,0.13219973,2936.9,2935.6,0.0044063]
[1769182994306,0.13219973,2936.7,2935.6,0.0044063]
[1769182994506,0.13487408,2936.7,2935.6,0.0044063]
[1769182996109,0.13219973,2936.5,2935.0,0.17056]
[1769182996413,0.13219973,2936.5,2935.0,9.97056]
[1769182997112,0.13219973,2936.5,2935.0,9.97342563]
[1769182998507,0.00267435,2936.7,2935.0,9.97342563]
[1769182998710,0.13487408,2936.7,2935.0,9.97342563]
[1769183000109,1.11027747,2936.6,2935.0,9.97342563]
[1769183000315,1.11016762,2936.5,2935.0,9.97342563]
[1769183000508,0.13219973,2936.5,2935.0,9.97342563]
[1769183001110,0.00267435,2936.7,2935.1,0.17056]
[1769183001418,0.00267435,2936.7,2935.3,0.17055]
[1769183002211,0.00267435,2936.7,2935.1,0.13913967]
[1769183002613,0.00267435,2936.7,2935.6,0.17053]
[1769183004011,0.13219973,2938.3,2935.9,0.1391234]
[1769183004314,0.13219973,2938.1,2936.3,0.17049]
[1769183004514,0.13219973,2938.1,2936.3,9.97049]
[1769183004915,0.13553221,2938.1,2936.3,9.97049]
[1769183005108,1.08278496,2938.0,2936.3,9.97049]
[1769183005308,0.13219973,2938.0,2936.3,9.97049]
[1769183005511,0.00333248,2938.1,2936.4,0.13933695]
[1769183005917,0.00333248,2938.1,2936.6,0.17047]
[1769183007822,0.13553221,2938.1,2936.6,0.17047]
[1769183008011,0.13553221,2938.1,2936.3,9.8]
[1769183008318,0.13219973,2937.9,2936.3,9.8]
[1769183008519,0.13219973,2937.7,2936.3,9.8]
[1769183009021,0.13219973,2937.7,2936.0,0.17051]
[1769183009414,0.13219973,2937.7,2936.1,9.8]
[1769183010424,0.13219973,2937.7,2936.1,9.9705]
[1769183010920,0.13553221,2938.1,2936.3,0.31069374]
[1769183011421,0.13553221,2938.1,2936.4,0.17048]
[1769183011621,0.13553221,2938.1,2936.3,0.14020374]
[1769183012519,0.13553221,2938.1,2936.6,0.17047]
[1769183013113,0.13553221,2938.1,2936.1,9.8]
[1769183013517,0.14363809,2937.9,2936.1,9.9705]
[1769183014328,0.00333248,2938.1,2935.3,4.35178525]
[1769183014329,0.14363809,2937.7,2935.7,0.17052]
[1769183014519,0.14363809,2937.5,2935.7,0.17052]
[1769183014719,0.14363809,2937.5,2935.8,9.8]
[1769183017629,0.9374932,2937.4,2935.7,0.17052]
[1769183017828,0.14363809,2937.3,2935.7,0.17052]
[1769183018224,0.14363809,2937.3,2935.1,9.8]
[1769183018424,0.14363809,2937.2,2935.0,0.13914667]
[1769183018630,0.14363809,2937.2,2935.5,0.13628104]
[1769183019025,0.17043,2937.4,2935.7,0.13628104]
[1769183019635,0.17372248,2938.1,2936.0,0.13628104]
[1769183019828,0.31736057,2938.1,2936.0,0.13628104]
[1769183021530,0.14697057,2938.1,2936.3,0.17049]
[1769183021937,0.14697057,2938.1,2936.5,0.17048]
[1769183023735,0.14697057,2938.1,2936.1,0.1705]
[1769183024440,0.14697057,2938.1,2936.1,9.9705]
[1769183024735,0.14697057,2938.1,2935.6,0.17053]
[1769183024736,0.14363809,2937.6,2935.6,0.17053]
[1769183024939,0.14363809,2937.4,2935.6,0.17053]
[1769183025140,0.14363809,2937.4,2935.7,9.8]
[1769183026330,0.14363809,2937.2,2935.7,9.8]
[1769183026730,0.14363809,2937.2,2935.0,3.01758263]
[1769183026731,0.14363809,2937.0,2935.1,0.17056]
[1769183026939,0.14363809,2936.6,2935.0,0.00286563]
[1769183027141,1.07854308,2936.5,2935.0,0.00286563]
[1769183027342,0.14363809,2936.4,2935.0,0.00286563]
[1769183033435,0.14363809,2936.0,2935.0,0.00286563]
[1769183033641,0.14363809,2936.0,2934.0,0.17062]
[1769183033842,0.14363809,2936.0,2934.1,9.8]
[1769183034549,0.14363809,2936.0,2934.1,9.80311582]
[1769183034550,0.31783556,2936.0,2934.1,9.80311582]
[1769183034848,0.14363809,2935.9,2934.1,9.80311582]
[1769183035243,0.14363809,2935.9,2934.1,9.97373582]
[1769183035848,0.14363809,2935.8,2934.1,0.17373582]